bitfinex/quotes_SOLUSD_20250219
["timestamp","ask_amount","ask_price","bid_price","bid_amount"]
[1739940450162,95.32312299,165.31,165.28,6.0503]
[1739940450381,82.7,165.31,165.28,6.0503]
[1739940455670,95.32312299,165.31,165.28,6.0503]
[1739940456195,82.7,165.31,165.28,6.0503]
[1739940457884,95.32312299,165.31,165.28,6.0503]
[1739940458199,12.62312299,165.29,165.24,6.0518]
[1739940458381,6.0489,165.32,165.24,6.0518]
[1739940458382,12.62312299,165.27,165.24,6.0518]
[1739940458586,82.7,165.26,165.24,6.0518]
[1739940458804,95.32312299,165.26,165.24,6.0518]
[1739940459004,95.32312299,165.25,165.23,0.063]
[1739940459307,12.62312299,165.24,165.23,0.063]
[1739940459602,95.32312299,165.25,165.23,0.063]
[1739940460289,12.62312299,165.24,165.23,0.063]
[1739940463282,95.32312299,165.25,165.23,0.063]
[1739940463694,82.7,165.25,165.23,0.063]
[1739940464497,95.32312299,165.25,165.23,0.063]
[1739940466804,12.62312299,165.24,165.23,0.063]
[1739940469116,82.7,165.25,165.23,0.063]
[1739940471207,82.7,165.27,165.23,0.063]
[1739940472200,82.7,165.27,165.23,18.73822299]
[1739940477419,82.7,165.27,165.23,21.76949926]
[1739940481326,82.7,165.27,165.25,12.62312299]
[1739940481619,82.7,165.27,165.23,6.1151]
[1739940482906,82.7,165.27,165.23,18.73822299]
[1739940483400,82.7,165.27,165.23,33.86862299]
[1739940484006,82.7,165.31,165.25,12.62312299]
[1739940484205,82.7,165.31,165.25,12.94915893]
[1739940484626,82.7,165.31,165.25,8.39462566]
[1739940485030,82.7,165.31,165.26,28.06858972]
[1739940486224,82.7,165.31,165.27,6.0507]
[1739940486528,82.7,165.31,165.28,8.06858972]
[1739940486728,82.7,165.31,165.28,12.60195951]
[1739940487136,82.7,165.31,165.27,18.65265951]
[1739940488626,82.7,165.31,165.27,6.0507]
[1739940501142,82.7,165.31,165.27,12.60195951]
[1739940503641,82.7,165.31,165.28,6.0503]
[1739940511443,14.54623739,165.34,165.28,6.0503]
[1739940511444,82.7,165.34,165.31,20.0]
[1739940511645,91.90097936,165.4,165.33,8.06690425]
[1739940511954,82.7,165.4,165.35,8.06690425]
[1739940512927,82.7,165.4,165.36,6.0474]
[1739940513126,82.7,165.4,165.36,14.11430425]
[1739940513629,82.7,165.4,165.36,6.0474]
[1739940513833,82.7,165.4,165.36,14.11430425]
[1739940514854,82.7,165.4,165.36,6.0474]
[1739940515055,82.7,165.4,165.31,6.0492]
[1739940515056,90.76690425,165.4,165.31,6.0492]
[1739940515227,8.06690425,165.36,165.31,9.08693944]
[1739940515434,8.06690425,165.35,165.31,9.08693944]
[1739940516035,8.06690425,165.35,165.31,6.0492]
[1739940516228,8.06690425,165.35,165.3,8.06690425]
[1739940516229,82.7,165.34,165.3,8.06690425]
[1739940516431,8.06690425,165.31,165.28,6.05]
[1739940517055,82.7,165.32,165.28,6.05]
[1739940517235,82.7,165.32,165.29,8.06690425]
[1739940517632,82.7,165.32,165.31,20.0]
[1739940517834,82.7,165.36,165.31,28.06690425]
[1739940518039,82.7,165.36,165.32,8.06690425]
[1739940518239,82.7,165.36,165.33,8.06690425]
[1739940518439,82.7,165.36,165.34,6.0481]
[1739940518651,82.7,165.39,165.34,29.23530425]
[1739940518955,82.7,165.39,165.35,8.06690425]
[1739940519352,0.03,165.43,165.38,20.0]
[1739940519353,8.06690425,165.42,165.38,20.0]
[1739940519531,90.79690425,165.43,165.37,28.06690425]
[1739940520051,82.73,165.43,165.39,8.06690425]
[1739940520465,82.73,165.43,165.4,6.0459]
[1739940521944,82.73,165.43,165.39,26.0463]
[1739940522248,8.06690425,165.41,165.37,26.0466]
[1739940522450,8.06690425,165.4,165.37,26.0466]
[1739940523358,8.06690425,165.38,165.34,95.98]
[1739940523552,8.06690425,165.37,165.34,95.98]
[1739940523760,8.06690425,165.38,165.34,95.98]
[1739940524055,8.06690425,165.39,165.34,95.98]
[1739940524251,82.7,165.4,165.34,110.09500425]
[1739940524553,90.76690425,165.4,165.34,110.09500425]
[1739940524737,8.06690425,165.39,165.34,102.0281]
[1739940524936,90.76690425,165.38,165.34,95.98]
[1739940525139,8.06690425,165.36,165.34,95.98]
[1739940525341,90.76690425,165.35,165.27,15.76560425]
[1739940525557,8.06690425,165.32,165.27,6.1136]
[1739940525757,8.06690425,165.32,165.27,0.063]
[1739940525758,8.06690425,165.3,165.27,0.063]
[1739940525930,82.7,165.32,165.27,0.063]
[1739940525931,90.76690425,165.29,165.27,0.063]
[1739940526132,82.7,165.29,165.27,0.063]
[1739940529164,82.7,165.29,165.27,0.38903594]
[1739940530159,82.7,165.29,165.27,6.43963594]
[1739940530755,82.7,165.29,165.27,19.04875454]
[1739940531279,82.7,165.29,165.27,6.43963594]
[1739940531483,82.7,165.29,165.27,0.38903594]
[1739940532079,82.7,165.29,165.27,6.43963594]
[1739940533982,82.7,165.29,165.27,19.04875454]
[1739940534783,82.7,165.29,165.28,12.6091186]
[1739940534962,82.7,165.35,165.31,20.0]
[1739940535166,82.7,165.35,165.31,32.6091186]
[1739940536151,82.7,165.35,165.32,6.0488]
[1739940536678,82.7,165.35,165.32,18.6579186]
[1739940536980,82.7,165.38,165.33,12.6091186]
[1739940537190,82.7,165.38,165.32,18.6579186]
[1739940537551,95.3091186,165.38,165.32,18.6579186]
[1739940537983,82.7,165.38,165.32,18.6579186]
[1739940538962,95.3091186,165.38,165.32,6.0488]
[1739940541687,82.7,165.38,165.32,18.6579186]
[1739940542891,82.7,165.38,165.33,12.6091186]
[1739940543474,12.6091186,165.37,165.32,6.0488]
[1739940543679,12.6091186,165.36,165.31,26.0491]
[1739940544162,12.28308266,165.36,165.31,26.0491]
[1739940544675,12.6091186,165.37,165.31,26.0491]
[1739940544874,12.6091186,165.37,165.31,38.6582186]
[1739940545289,95.3091186,165.38,165.32,12.6091186]
[1739940545463,82.7,165.38,165.32,12.6091186]
[1739940545803,82.7,165.38,165.33,12.6091186]
[1739940546388,82.2,165.38,165.33,12.6091186]
[1739940546594,12.6091186,165.37,165.31,26.0491]
[1739940546792,12.6091186,165.36,165.31,26.0491]
[1739940547203,12.6091186,165.35,165.28,15.58000344]
[1739940547370,12.6091186,165.34,165.29,6.0499]
[1739940548076,82.2,165.36,165.29,6.0499]
[1739940548077,12.6091186,165.35,165.29,6.0499]
[1739940548594,90.26476295,165.36,165.29,14.11466295]
[1739940548763,82.2,165.36,165.31,8.06476295]
[1739940549198,90.26476295,165.36,165.29,14.11466295]
[1739940549891,8.06476295,165.33,165.27,15.82426295]
[1739940550097,8.06476295,165.33,165.28,6.0502]
[1739940550391,8.06476295,165.33,165.27,7.7595]
[1739940550590,12.60632784,165.32,165.27,13.8101]
[1739940550793,12.60632784,165.32,165.27,0.063]
[1739940550794,12.60632784,165.29,165.27,0.063]
[1739940550970,94.80632784,165.28,165.27,0.063]
[1739940551491,82.2,165.28,165.27,0.063]
[1739940554467,12.60632784,165.28,165.27,0.063]
[1739940555293,26.01817637,165.28,165.27,0.063]
[1739940555877,12.60632784,165.28,165.27,0.063]
[1739940556272,12.60632784,165.29,165.27,0.063]
[1739940556899,12.60632784,165.3,165.27,0.063]
[1739940557081,12.60632784,165.31,165.27,0.063]
[1739940557280,12.60632784,165.33,165.27,0.063]
[1739940557494,13.74095409,165.34,165.27,12.66932784]
[1739940557803,12.60632784,165.32,165.27,0.063]
[1739940558106,12.60632784,165.3,165.27,0.063]
[1739940558298,12.60632784,165.28,165.27,0.063]
[1739940558494,12.60632784,165.29,165.27,0.063]
[1739940559588,82.7,165.3,165.27,0.063]
[1739940560377,95.30632784,165.33,165.27,18.72002784]
[1739940560705,82.7,165.33,165.28,12.60632784]
[1739940562183,82.7,165.36,165.31,12.60632784]
[1739940564208,82.7,165.36,165.32,6.0488]
[1739940564978,82.7,165.36,165.32,18.65512784]
[1739940565286,82.7,165.36,165.32,38.65512784]
[1739940565491,82.7,165.36,165.33,12.60632784]
[1739940566106,12.60632784,165.39,165.33,12.60632784]
[1739940566315,0.03,165.38,165.34,6.0481]
[1739940567611,12.63632784,165.38,165.34,6.0481]
[1739940569191,0.03,165.38,165.34,6.0481]
[1739940569392,0.03,165.38,165.33,6.0485]
[1739940571613,0.03,165.38,165.33,41.66222784]
[1739940571818,0.03,165.38,165.34,12.60632784]
[1739940572123,0.03,165.38,165.35,12.60632784]
[1739940572820,0.03,165.38,165.36,6.0474]
[1739940577416,0.03,165.38,165.36,18.65372784]
[1739940578327,0.03,165.38,165.36,6.0474]
[1739940581424,81.73,165.4,165.36,6.0474]
[1739940581600,81.73,165.4,165.36,14.10572508]
[1739940582706,8.05832508,165.39,165.35,6.0476]
[1739940583228,81.73,165.4,165.36,8.05832508]
[1739940585115,81.73,165.4,165.37,6.047]
[1739940586129,81.73,165.4,165.37,14.10532508]
[1739940586822,81.73,165.4,165.35,15.1194]
[1739940586823,89.78832508,165.4,165.34,6.0481]
[1739940587030,8.05832508,165.39,165.34,6.0481]
[1739940588930,8.05832508,165.35,165.33,0.063]
[1739940590604,12.60088453,165.35,165.33,0.063]
[1739940591220,12.60088453,165.36,165.33,0.063]
[1739940591923,94.33088453,165.37,165.33,0.063]
[1739940592645,81.73,165.37,165.33,12.66388453]
[1739940593153,94.33088453,165.4,165.33,12.66388453]
[1739940593818,81.73,165.4,165.36,18.64828453]
[1739940594541,81.73,165.4,165.36,26.58228453]
[1739940595236,81.73,165.4,165.38,6.0466]
[1739940595749,81.73,165.4,165.38,18.64748453]
[1739940596037,0.03,165.43,165.38,18.64748453]
[1739940596258,0.03,165.43,165.39,12.60088453]
[1739940596414,0.03,165.43,165.38,33.76418453]
[1739940596826,0.03,165.43,165.39,12.60088453]
[1739940597237,0.03,165.43,165.4,6.0459]
[1739940598246,0.03,165.43,165.38,27.71758453]
[1739940598422,0.03,165.43,165.4,12.60088453]
[1739940599531,0.03,165.43,165.41,6.0455]
[1739940599718,0.03,165.43,165.42,12.60088453]
[1739940601150,0.03,165.43,165.41,21.6674544]
[1739940601743,0.03,165.43,165.41,6.0455]
[1739940601928,0.03,165.43,165.41,18.64638453]
[1739940602134,0.03,165.43,165.42,12.60088453]
[1739940603240,0.063,165.44,165.42,101.33498453]
[1739940603447,0.0001,165.44,165.43,12.60088453]
[1739940603631,0.0001,165.44,165.43,18.64568453]
[1739940603842,0.0001,165.44,165.43,112.95753306]
[1739940604027,0.063,165.47,165.43,113.95743561]
[1739940604028,0.0001,165.47,165.43,113.95743561]
[1739940604226,0.0001,165.47,165.46,32.60088453]
[1739940605223,0.063,165.5,165.46,32.60088453]
[1739940605224,0.0001,165.5,165.46,113.50088453]
[1739940605427,0.0001,165.5,165.49,40.85668453]
[1739940606035,0.0001,165.5,165.49,26.0426]
[1739940606942,12.60098453,165.5,165.44,99.03351476]
[1739940607252,12.60098453,165.5,165.44,95.94]
[1739940607253,12.60088453,165.46,165.44,95.94]
[1739940607558,12.60088453,165.48,165.44,101.9843]
[1739940607723,94.33088453,165.49,165.44,101.9843]
[1739940607924,12.60088453,165.47,165.44,95.94]
[1739940608120,12.60088453,165.46,165.44,95.94]
[1739940608647,12.60088453,165.47,165.44,95.94]
[1739940608872,81.73,165.48,165.47,20.0]
[1739940609052,81.73,165.48,165.47,32.60088453]
[1739940609556,81.73,165.48,165.47,20.0]
[1739940609728,81.73,165.48,165.44,101.9843]
[1739940611927,81.73,165.48,165.44,114.58518453]
[1739940612425,81.73,165.48,165.44,101.9843]
[1739940612637,81.73,165.48,165.44,6.0443]
[1739940612858,12.60088453,165.49,165.44,6.0443]
[1739940613043,0.0001,165.5,165.44,18.64518453]
[1739940613252,0.0001,165.5,165.45,12.60088453]
[1739940613552,0.0001,165.5,165.44,18.64518453]
[1739940614256,0.03,165.48,165.45,12.60088453]
[1739940614632,0.03,165.48,165.45,17.32088453]
[1739940615050,0.03,165.48,165.47,32.60088453]
[1739940615358,0.0001,165.5,165.47,32.60088453]
[1739940615543,0.0001,165.5,165.49,19.05198453]
[1739940616345,0.0001,165.5,165.49,12.4937]
[1739940617536,12.60098453,165.5,165.43,21.1568]
[1739940617857,12.60088453,165.44,165.41,0.063]
[1739940618069,12.60088453,165.46,165.41,6.1084]
[1739940618259,94.33088453,165.45,165.41,0.063]
[1739940618464,13.41184853,165.47,165.41,0.063]
[1739940618465,12.60088453,165.42,165.41,0.063]
[1739940618633,12.10088453,165.42,165.41,20.063]
[1739940618830,12.60088453,165.42,165.41,20.063]
[1739940620545,12.60088453,165.43,165.41,26.1085]
[1739940621245,94.33088453,165.42,165.41,0.063]
[1739940623843,128.00701759,165.42,165.41,0.063]
[1739940624447,20.0,165.38,165.33,0.063]
[1739940624747,12.60088453,165.34,165.33,0.063]
[1739940626433,1.13424869,165.37,165.33,0.063]
[1739940626772,12.60088453,165.38,165.33,0.063]
[1739940626973,12.60088453,165.34,165.33,0.063]
[1739940627351,13.73524374,165.34,165.33,0.063]
[1739940627942,45.7960768,165.34,165.33,0.063]
[1739940628239,14.41184853,165.33,165.27,0.063]
[1739940628440,12.60088453,165.28,165.27,0.063]
[1739940629542,12.60088453,165.28,165.21,83.97169144]
[1739940629762,12.60088453,165.25,165.21,83.97169144]
[1739940630453,12.60088453,165.25,165.22,6.0525]
[1739940630660,1.13474121,165.3,165.22,6.0525]
[1739940630661,20.18427935,165.26,165.22,6.0525]
[1739940631689,20.18427935,165.28,165.22,26.23677935]
[1739940632143,20.18427935,165.31,165.24,20.18427935]
[1739940632338,20.18427935,165.32,165.25,20.18427935]
[1739940632591,102.88427935,165.33,165.28,20.0]
[1739940632764,82.7,165.33,165.29,6.0499]
[1739940633072,20.18427935,165.3,165.27,6.0503]
[1739940633365,20.18427935,165.28,165.22,101.08427935]
[1739940633553,20.18427935,165.28,165.23,6.0521]
[1739940634451,20.18427935,165.27,165.23,6.0521]
[1739940634655,20.18427935,165.26,165.22,6.0525]
[1739940634859,20.18427935,165.27,165.22,6.0525]
[1739940635180,20.18427935,165.26,165.22,6.0525]
[1739940635374,20.18427935,165.25,165.22,6.0525]
[1739940636189,20.18427935,165.26,165.22,6.0525]
[1739940636861,20.18427935,165.24,165.2,0.063]
[1739940637055,20.18427935,165.23,165.2,0.063]
[1739940637471,20.18427935,165.22,165.2,0.063]
[1739940638580,20.18427935,165.23,165.2,0.063]
[1739940639176,20.18427935,165.23,165.21,0.063]
[1739940640865,102.88427935,165.24,165.21,0.063]
[1739940641883,20.18427935,165.23,165.21,0.063]
[1739940642062,20.18427935,165.22,165.21,0.063]
[1739940645755,21.31931093,165.22,165.21,0.063]
[1739940646095,27.37181093,165.22,165.21,0.063]
[1739940646472,21.31931093,165.22,165.21,0.063]
[1739940646676,20.18427935,165.22,165.21,0.063]
[1739940647376,21.3194646,165.22,165.21,0.063]
[1739940648569,20.18427935,165.22,165.21,0.063]
[1739940650694,13.75872851,165.22,165.21,0.063]
[1739940651297,13.78872851,165.22,165.21,0.063]
[1739940651992,12.65350183,165.22,165.21,0.063]
[1739940654973,0.03,165.22,165.21,0.063]
[1739940655173,12.65350183,165.22,165.21,0.063]
[1739940656800,34.9079797,165.22,165.21,0.063]
[1739940660503,33.2530797,165.22,165.21,0.063]
[1739940660710,12.65350183,165.22,165.21,0.063]
[1739940661911,0.03,165.22,165.21,0.063]
[1739940663507,12.65350183,165.22,165.21,0.063]
[1739940663893,33.25292515,165.22,165.21,0.063]
[1739940664781,27.20042515,165.22,165.21,0.063]
[1739940665284,12.65350183,165.22,165.21,0.063]
[1739940666512,18.70600183,165.22,165.21,0.063]
[1739940666809,19.84123687,165.22,165.21,0.063]
[1739940669807,13.78873687,165.22,165.21,0.063]
[1739940670514,12.65350183,165.22,165.21,0.063]
[1739940671605,0.03,165.22,165.21,0.063]
[1739940673517,12.65350183,165.22,165.21,0.063]
[1739940674814,0.03,165.22,165.21,0.063]
[1739940675900,0.03,165.22,165.21,20.063]
[1739940676431,0.03,165.22,165.21,39.18280183]
[1739940676622,0.0001,165.22,165.21,45.23570183]
[1739940677691,0.0001,165.22,165.21,46.83250183]
[1739940678195,0.03,165.26,165.22,0.99990175]
[1739940678404,0.03,165.26,165.25,12.62350183]
[1739940678619,82.7,165.34,165.28,20.0]
[1739940679191,82.7,165.34,165.3,20.0]
[1739940680234,82.7,165.34,165.28,27.8877]
[1739940680537,12.62350183,165.31,165.28,27.8877]
[1739940680715,12.62350183,165.31,165.28,33.9379]
[1739940681231,12.62350183,165.32,165.28,33.9379]
[1739940683206,12.62350183,165.31,165.28,33.9379]
[1739940685043,95.32350183,165.32,165.28,33.9379]
[1739940685925,0.03,165.31,165.28,33.9379]
[1739940686119,12.65350183,165.31,165.28,33.9379]
[1739940687140,0.03,165.31,165.28,33.9379]
[1739940688811,0.03,165.31,165.28,46.56140183]
[1739940689342,0.03,165.31,165.28,33.9379]
[1739940691051,0.03,165.31,165.28,46.56140183]
[1739940691209,0.03,165.31,165.3,20.0]
[1739940691414,0.03,165.31,165.3,32.62350183]
[1739940691613,0.03,165.31,165.3,20.0]
[1739940692950,0.03,165.31,165.3,23.0159936]
[1739940693115,0.03,165.31,165.3,29.0655936]
[1739940693636,0.03,165.31,165.3,26.0496]
[1739940693959,0.03,165.31,165.3,6.0496]
[1739940695145,0.03,165.31,165.29,6.0499]
[1739940696831,0.03,165.31,165.29,18.67340183]
[1739940697552,0.03,165.31,165.3,12.62350183]
[1739940698053,0.03,165.31,165.29,6.0499]
[1739940701050,0.03,165.31,165.29,18.67340183]
[1739940701647,0.03,165.31,165.29,6.0499]
[1739940704257,0.03,165.31,165.29,18.67340183]
[1739940705251,0.0001,165.31,165.3,12.62350183]
[1739940705838,0.0001,165.31,165.3,106.93535036]
[1739940707562,0.0001,165.31,165.3,99.57310183]
[1739940707851,0.0001,165.31,165.3,86.9496]
[1739940708355,0.0001,165.31,165.3,99.57310183]
[1739940708653,0.0001,165.31,165.3,102.66253676]
[1739940709855,0.0001,165.31,165.3,90.03903493]
[1739940710069,0.0001,165.31,165.3,102.66253676]
[1739940710958,0.0001,165.31,165.3,21.76253676]
[1739940711926,0.0001,165.31,165.3,9.13903493]
[1739940712544,0.0001,165.31,165.3,6.0496]
[1739940713427,0.0001,165.31,165.3,20.0]
[1739940714043,0.03,165.39,165.34,20.0]
[1739940714244,0.03,165.39,165.37,12.62350183]
[1739940714436,0.03,165.39,165.38,20.0]
[1739940715334,0.03,165.39,165.38,32.62350183]
[1739940715535,0.03,165.39,165.38,38.67010183]
[1739940715756,0.0001,165.39,165.38,38.67010183]
[1739940716143,82.7,165.38,165.3,15.7165289]
[1739940716338,12.62350183,165.35,165.3,3.09302707]
[1739940716661,83.8340829,165.38,165.3,3.09302707]
[1739940716662,12.62350183,165.34,165.3,6.0496]
[1739940717035,12.62350183,165.36,165.3,6.0496]
[1739940717653,12.62350183,165.36,165.33,20.0]
[1739940720061,95.32350183,165.37,165.33,20.0]
[1739940721062,12.62350183,165.36,165.33,20.0]
[1739940721368,12.62350183,165.34,165.32,20.0]
[1739940721558,12.62350183,165.33,165.32,20.0]
[1739940722267,12.62350183,165.34,165.32,20.0]
[1739940722471,12.65350183,165.36,165.32,26.0488]
[1739940722767,0.03,165.36,165.32,26.0488]
[1739940723081,0.03,165.36,165.35,20.0]
[1739940723368,1.5373,165.33,165.3,0.063]
[1739940723584,12.62350183,165.31,165.3,0.063]
[1739940723753,1.0,165.29,165.21,0.063]
[1739940724069,12.62350183,165.27,165.19,5.05825831]
[1739940724267,12.62350183,165.22,165.19,5.05825831]
[1739940724449,95.32350183,165.24,165.19,5.05825831]
[1739940724659,12.62350183,165.26,165.22,20.0]
[1739940724857,95.32350183,165.27,165.23,20.0]
[1739940725058,82.7,165.27,165.23,26.0518]
[1739940726472,95.32350183,165.27,165.23,26.0518]
[1739940726648,95.32350183,165.27,165.23,20.0]
[1739940726649,12.62350183,165.25,165.23,20.0]
[1739940727079,82.7,165.27,165.23,26.0519]
[1739940727080,95.32350183,165.27,165.23,26.0519]
[1739940727947,82.7,165.27,165.23,26.0519]
[1739940728970,20.17909422,165.29,165.23,26.0519]
[1739940730275,20.17909422,165.27,165.23,26.0519]
[1739940733165,20.17909422,165.25,165.21,6.0526]
[1739940733355,20.17909422,165.24,165.21,6.0526]
[1739940733551,20.17909422,165.24,165.19,80.9]
[1739940733552,20.17909422,165.24,165.19,6.0536]
[1739940733758,20.17909422,165.25,165.19,26.23269422]
[1739940733956,102.87909422,165.27,165.23,0.063]
[1739940734150,82.7,165.27,165.23,0.063]
[1739940734379,20.17909422,165.25,165.23,0.063]
[1739940736552,21.31396535,165.24,165.23,0.063]
[1739940737685,20.17909422,165.24,165.23,0.063]
[1739940739065,20.17909422,165.25,165.23,0.063]
[1739940739268,82.7,165.26,165.23,0.063]
[1739940739673,102.87909422,165.26,165.23,0.063]
[1739940740467,82.7,165.26,165.23,0.063]
[1739940742595,102.87909422,165.26,165.23,0.063]
[1739940744393,82.7,165.26,165.23,0.063]
[1739940745894,82.73,165.26,165.23,0.063]
[1739940746264,102.90909422,165.26,165.23,0.063]
[1739940748692,95.34484356,165.26,165.23,0.063]
[1739940750082,82.73,165.26,165.23,0.063]
[1739940750996,0.03,165.26,165.25,20.0]
[1739940752305,0.03,165.26,165.25,26.0514]
[1739940755496,12.64484356,165.26,165.25,20.0]
[1739940756195,12.64484356,165.26,165.23,0.063]
[1739940756500,12.61484356,165.24,165.23,0.063]
[1739940757700,82.7,165.23,165.2,0.063]
[1739940757884,12.61484356,165.21,165.2,0.063]
[1739940764507,26.02669209,165.21,165.2,0.063]
[1739940771015,27.16193423,165.21,165.2,0.063]
[1739940771221,13.7500857,165.21,165.2,0.063]
[1739940773021,33.21483423,165.21,165.2,0.063]
[1739940774626,28.68260036,165.21,165.2,0.063]
[1739940775123,22.0,165.17,165.15,0.03]
[1739940775321,33.41184853,165.11,165.03,21.77325754]
[1739940775525,9.21874333,165.1,165.03,15.71385754]
[1739940776319,22.63059186,165.1,165.03,15.71385754]
[1739940776628,27.19479078,165.1,165.03,15.71385754]
[1739940778603,27.19479078,165.1,165.03,21.77315754]
[1739940778805,33.25169078,165.1,165.03,15.71385754]
[1739940779017,27.19479078,165.1,165.03,15.71385754]
[1739940779225,33.25169078,165.1,165.03,15.71385754]
[1739940779415,33.25169078,165.1,165.03,21.77325754]
[1739940779617,33.25169078,165.1,165.03,15.71385754]
[1739940782126,33.25169078,165.1,165.03,21.77325754]
[1739940782717,27.19479078,165.1,165.03,21.77325754]
[1739940782916,12.64680861,165.1,165.03,21.77325754]
[1739940783115,2.0,164.94,164.88,6.07]
[1739940783305,12.64680861,164.89,164.84,75.67938306]
[1739940783510,12.64680861,164.87,164.84,75.67938306]
[1739940785326,12.64680861,164.87,164.81,6.0675]
[1739940785904,1.13749439,164.89,164.84,20.0]
[1739940785905,13.784303,164.89,164.84,20.0]
[1739940786111,12.64680861,164.9,164.83,6.0668]
[1739940786308,95.34680861,164.9,164.83,6.0668]
[1739940786736,12.64680861,164.89,164.83,6.0668]
[1739940787028,12.64680861,164.88,164.83,6.0668]
[1739940787225,12.64680861,164.88,164.86,20.0]
[1739940787536,12.64680861,164.89,164.86,20.0]
[1739940788537,95.34680861,164.89,164.85,20.0]
[1739940789009,95.34680861,164.89,164.86,20.0]
[1739940789335,95.34680861,164.88,164.86,20.0]
[1739940789910,82.7,164.88,164.86,20.0]
[1739940790719,95.34680861,164.92,164.86,20.0]
[1739940790925,82.7,164.91,164.86,32.64680861]
[1739940791421,82.7,164.91,164.86,20.0]
[1739940792747,12.64680861,164.89,164.87,6.0653]
[1739940792928,12.64680861,164.89,164.84,6.0664]
[1739940793544,12.64680861,164.89,164.87,20.0]
[1739940794248,82.7,164.88,164.87,20.0]
[1739940794745,82.7,164.88,164.87,26.0653]
[1739940794921,82.7,164.88,164.87,38.71210861]
[1739940795122,82.7,164.88,164.87,26.0653]
[1739940795442,82.7,164.88,164.87,6.0653]
[1739940796441,82.7,164.88,164.86,26.0655]
[1739940796811,13.41184853,164.86,164.83,0.03]
[1739940797036,12.64680861,164.84,164.83,0.03]
[1739940799439,26.05865714,164.84,164.83,0.03]
[1739940800335,32.12505714,164.84,164.83,0.03]
[1739940800735,26.05865714,164.84,164.83,0.03]
[1739940801043,32.12505714,164.84,164.83,0.03]
[1739940801225,26.05865714,164.84,164.83,0.03]
[1739940802112,33.12505714,164.84,164.83,0.03]
[1739940802314,33.26305662,164.84,164.83,0.03]
[1739940802514,34.26305662,164.84,164.83,0.03]
[1739940802734,33.26305662,164.84,164.83,0.03]
[1739940802940,13.78480809,164.84,164.83,0.03]
[1739940803123,12.64680861,164.85,164.83,0.03]
[1739940803444,13.78457823,164.85,164.83,0.03]
[1739940803643,12.64680861,164.84,164.83,0.03]
[1739940803841,13.78457823,164.85,164.83,0.03]
[1739940804054,12.64680861,164.85,164.83,0.03]
[1739940804836,12.64680861,164.86,164.83,0.03]
[1739940805014,13.78454548,164.87,164.83,0.03]
[1739940805212,13.7843589,164.9,164.83,12.67680861]
[1739940805645,12.64680861,164.89,164.83,12.67680861]
[1739940805846,82.7,164.88,164.84,12.64680861]
[1739940806449,82.7,164.88,164.83,12.67680861]
[1739940807134,82.7,164.88,164.84,6.0664]
[1739940807448,82.7,164.88,164.84,18.71320861]
[1739940808123,82.7,164.88,164.83,12.67680861]
[1739940809550,82.7,164.88,164.84,6.0664]
[1739940810752,82.7,164.88,164.85,12.64680861]
[1739940810931,82.7,164.88,164.86,12.64680861]
[1739940811322,82.7,164.88,164.85,12.64680861]
[1739940811723,82.7,164.88,164.84,21.2326]
[1739940811724,82.7,164.88,164.86,12.64680861]
[1739940812231,95.34680861,164.92,164.86,12.64680861]
[1739940813353,95.34680861,164.92,164.87,6.0653]
[1739940813537,82.7,164.91,164.87,6.0653]
[1739940814842,82.7,164.91,164.87,12.2581]
[1739940816026,82.7,164.91,164.85,6.0658]
[1739940816027,12.64680861,164.89,164.85,6.0658]
[1739940816856,12.64680861,164.87,164.84,6.0664]